Cogmind - Beta 17 @@@ ROGUE MODE // 2026.07.09 @ 17:31:51 Player: Ammie Result: Destroyed by H-55 Commando with Gauss Rifle Performance ------------- Evolutions (0) 0 Regions Visited (4) 800 Robots Destroyed (33) 165 Value Destroyed (841) 841 Prototype IDs (2) 40 Alien Tech Used (0) 0 Bonus (0) 0 TOTAL SCORE: 1846 Bonus ------- None Cogmind --------- Core Integrity 0/250 Matter 295/300 Energy 100/100 System Corruption 0% Temperature Cool (8) Movement Core (700) Ox13 Location -9/Recycling Parts ------- > --- POWER (1) -------- (None) > --- PROPULSION (2) --- (None) > --- UTILITY (2) ------ High-capacity Storage Unit > --- WEAPON (2) ------- (None) > --- INVENTORY (20) --- Light Ion Engine Light Ion Engine Improved Heat Sink ECM Suite EM Pulse Gun EM Pulse Gun Assault Rifle Light Cannon Peak State ------------ > --- POWER ------------ Ion Engine > --- PROPULSION ------- Light Treads Light Treads > --- UTILITY ---------- Small Storage Unit Structural Scanner > --- WEAPON ----------- Light Cannon Light Cannon > --- INVENTORY -------- Light Ion Engine Light Ion Engine Improved Heat Sink EM Pulse Gun Assault Rifle Light Assault Rifle Light Cannon Light Cannon [Rating: 8] Favorites ----------- Power Ion Engine Engine Ion Engine Propulsion Light Treads Treads Light Treads Utility High-capacity Storage Unit Device Structural Scanner Storage High-capacity Storage Unit Weapon Light Cannon Energy Gun EM Pulse Gun Ballistic Gun Assault Rifle Ballistic Cannon Light Cannon Build | -11 -10 -10 -10 -9 ------- Run | Yrd Mat Min Sub Rec Slots Evolved . | . . . . . Power . | . . . . . Propulsion . | . . . . . Utility . | . . . . . Weapon . | . . . . . Parts Attached 15 | 6 7 . 2 . Power 3 | 1 2 . . . Engine 3 | 1 2 . . . Core . | . . . . . Reactor . | . . . . . Propulsion 3 | 2 1 . . . Treads 3 | 2 1 . . . Leg . | . . . . . Wheel . | . . . . . Hover . | . . . . . Flight . | . . . . . Utility 3 | 1 2 . . . Device 1 | . 1 . . . Storage 2 | 1 1 . . . Processor . | . . . . . Hackware . | . . . . . Protection . | . . . . . Artifact . | . . . . . Weapon 6 | 2 2 . 2 . Energy Gun 1 | 1 . . . . Energy Cannon . | . . . . . Ballistic Gun 1 | 1 . . . . Ballistic Cannon 4 | . 2 . 2 . Launcher . | . . . . . Special Weapon . | . . . . . Impact Weapon . | . . . . . Slashing Weapon . | . . . . . Piercing Weapon . | . . . . . Special Melee Weapon . | . . . . . Unidentified Prototypes . | . . . . . Parts Lost 9 | . . . 5 4 Power 2 | . . . 1 1 Propulsion 2 | . . . 1 1 Utility 1 | . . . 1 . Weapon 4 | . . . 2 2 Highest Loss Streak 5 | . . . 5 4 To Critical Strikes 1 | . . . . 1 Average Backups 8 | 1 8 11 10 8 Power 2 | . 2 3 2 2 Propulsion . | . . . . . Utility 1 | . . 2 2 2 Weapon 4 | . 4 6 5 4 Tool/Special . | . . . . . Unused Backups 6 | . 1 . . 5 Power 1 | . . . . 1 Propulsion . | . . . . . Utility 2 | . . . . 2 Weapon 3 | . 1 . . 2 Tool/Special . | . . . . . Average Slot Usage (%) 94 | . 98 100 74 71 Engine 13 | . 14 14 9 14 Treads 26 | . 28 28 21 14 Device 11 | . 12 14 4 . Storage 14 | . 14 14 14 14 Energy Gun 1 | . 2 . . . Ballistic Gun 1 | . 2 . . . Ballistic Cannon 23 | . 22 28 23 28 Peak Build Rating 8 | 6 8 8 8 6 Average Rating 7 | 4 7 8 6 5 On Entrance 5 | . 6 8 8 6 Avg Prop Armor Cover (%) . | . . . . . Naked Turns . | . . . . . Heaviest Build 52 | 12 52 52 52 51 Greatest Support 40 | 40 40 40 40 20 Greatest Overweight (x) 2 | . 1 1 2 2 Average Overweight (x) . | . . 1 1 2 Largest Inventory Capacity 20 | 8 20 20 20 20 Average Capacity 17 | 6 16 20 20 20 Most Carried 11 | 2 11 11 11 8 Average Carried 8 | 1 8 11 9 8 Final Capacity 20 | 8 20 20 20 20 Final Carried 11 | 2 11 11 8 8 Class Distribution -------------------- 100% | Mutant Dominant Class ---------------- Mutant | -10/Materials Mutant | -10/Mines Mutant | -10/Subcaves Mutant | -9/Recycling Resources | -11 -10 -10 -10 -9 ----------- Run | Yrd Mat Min Sub Rec Matter Collected 754 | 221 373 48 112 . Remotely . | . . . . . Salvage Created 821 | . 763 39 19 . Parts 56 | . 48 5 3 . Haulers Intercepted 1 | . 1 . . . Recyclers Shooed . | . . . . . Parts Field Recycled . | . . . . . Retrieved Matter . | . . . . . Parts Self-Destructed 5 | . . . 5 . Prevented . | . . . . . Parts Restored . | . . . . . Kills | -11 -10 -10 -10 -9 ------- Run | Yrd Mat Min Sub Rec Combat Hostiles Destroyed 22 | . 15 4 3 . Guns 5 | . 5 . . . Cannons 15 | . 8 4 3 . AOE 2 | . 2 . . . Classes Destroyed 8 | . 6 1 1 . Builder 3 | . 3 . . . Tunneler 1 | . 1 . . . Hauler 1 | . 1 . . . Operator 1 | . 1 . . . Turret 2 | . . . 2 . Watcher 3 | . 3 . . . Swarmer 6 | . . 3 3 . Grunt 16 | . 15 1 . . Best Kill Streak 5 | . 5 3 3 . Combat Bots Only 4 | . 4 3 3 . Max Kills in Single Turn 2 | . 2 1 1 . Gunslinging . | . . . . . Exploded 1 | . 1 . . . Melee . | . . . . . Uniques/NPCs Destroyed . | . . . . . Combat | -11 -10 -10 -10 -9 -------- Run | Yrd Mat Min Sub Rec Hostile Shots Fired 211 | . 48 14 117 32 Missed 85 | . 20 5 49 11 Hits 126 | . 28 9 68 21 Projectile 126 | . 28 9 68 21 Critical Strikes 4 | . 1 . 1 2 Damage Taken 1253 | . 326 68 519 340 Core 250 | . 80 6 92 72 Absorbed by Shields . | . . . . . Core Remaining (%) 100 | 100 . . . . Volleys Fired 84 | . 53 6 24 1 Largest 2 | . 2 2 2 2 Hottest 60 | . 60 60 60 60 Shots Fired 151 | . 106 12 31 2 Gun 64 | . 64 . . . Cannon 87 | . 42 12 31 2 Launcher . | . . . . . Special . | . . . . . Kinetic 119 | . 74 12 31 2 Thermal . | . . . . . Explosive . | . . . . . Electromagnetic 32 | . 32 . . . Robot Hit Streak 13 | . 13 5 6 8 Robot Miss Streak 4 | . 3 2 4 . Penetration Max . | . . . . . Secondary Targets 1 | . 1 . . . Max Gunslinging Chain 1 | . 1 . . . Shots Hit Robots 91 | . 64 7 18 2 Core Hits 44 | . 34 4 6 . Critical Kills . | . . . . . Critical Parts Destroyed . | . . . . . Critical Strikes 3 | . 1 . 2 . Blast 2 | . . . 2 . Corrupt 1 | . 1 . . . Melee Attacks . | . . . . . Impact . | . . . . . Slashing . | . . . . . Piercing . | . . . . . Sneak Attacks . | . . . . . Combat Hostiles . | . . . . . Follow-up Attacks . | . . . . . Damage Inflicted 1746 | . 1270 121 328 27 Guns 512 | . 512 . . . Cannons 931 | . 455 121 328 27 Explosions 303 | . 303 . . . Melee . | . . . . . Ramming . | . . . . . Kinetic 1167 | . 691 121 328 27 Thermal 114 | . 114 . . . Explosive 189 | . 189 . . . Electromagnetic 276 | . 276 . . . Impact . | . . . . . Slashing . | . . . . . Piercing . | . . . . . Highest Corruption . | . . . . . Average Corruption . | . . . . . Corruption Purged . | . . . . . Corruption Blocked . | . . . . . Overload Shots . | . . . . . Overflow Damage 17 | . . . 17 . Projectiles 17 | . . . 17 . Explosions . | . . . . . Melee . | . . . . . Knockbacks 8 | . 4 1 3 . Impact . | . . . . . Kinetic 8 | . 4 1 3 . Secondary . | . . . . . Self-Inflicted Damage . | . . . . . Shots . | . . . . . Rammed . | . . . . . Targets Rammed . | . . . . . Kicked . | . . . . . Crushed . | . . . . . Highest Temperature 57 | . 57 . . 13 Average Temperature 24 | . 25 . . 10 Received Heat Transfer 423 | . 201 6 192 24 Siege Activations . | . . . . . Martial Activations . | . . . . . Shielding Activations . | . . . . . Robots Disrupted . | . . . . . Combat Hostiles . | . . . . . Robots Corrupted . | . . . . . Combat Hostiles . | . . . . . Parts Fried . | . . . . . Impact Corruptions . | . . . . . Robots Melted . | . . . . . Combat Hostiles . | . . . . . Parts Melted . | . . . . . Heat Transferred 150 | . 150 . . . Parts Sabotaged . | . . . . . Parts Stolen . | . . . . . Parts Stripped . | . . . . . Power Chain Reactions 3 | . 3 . . . Alert | -11 -10 -10 -10 -9 ------- Run | Yrd Mat Min Sub Rec Maximum Alert Level . | . . . . . Low Security (%) 100 | 100 100 100 . 100 Level 1 . | . . . . . Level 2 . | . . . . . Level 3 . | . . . . . Level 4 . | . . . . . Level 5 . | . . . . . High Security . | . . . . . Max Security . | . . . . . Peak Influence 187 | . 187 103 . 21 Initial 33 | . . 33 . 21 Average 46 | . 58 28 . 3 Influence Increases 772 | . 522 90 160 . Destroy 0b10 Robot/C 480 | . 300 80 100 . Destroy 0b10 Robot/NC 45 | . 45 . . . Destroy Leader 88 | . 78 10 . . Successful Hack 5 | . 5 . . . Disable Machine 75 | . 75 . . . Destroy Structure 19 | . 19 . . . Lose Combat Pursuer 60 | . . . 60 . Influence Decreases 772 | . 436 176 115 45 Entered New Map 77 | . . 53 . 24 Time Decay 650 | . 436 123 70 21 Lost Part 45 | . . . 45 . Squads Dispatched 4 | . 4 . . . Investigation 2 | . 2 . . . Extermination . | . . . . . Reinforcement 2 | . 2 . . . Assault . | . . . . . Garrison . | . . . . . Intercept . | . . . . . Searches Triggered . | . . . . . Construction Impeded . | . . . . . Haulers Reinforced . | . . . . . Active Scanning Responses . | . . . . . Cargo Convoy Interrupts . | . . . . . Stealth | -11 -10 -10 -10 -9 --------- Run | Yrd Mat Min Sub Rec Distress Signals 1 | . 1 . . . Communications Jammed . | . . . . . Distress Signals . | . . . . . Times Spotted 41 | . 23 4 7 7 Peak Tracking Total 7 | . 4 2 6 7 Tactical Retreats 2 | . . . 2 . Traps | -11 -10 -10 -10 -9 ------- Run | Yrd Mat Min Sub Rec Traps Triggered 2 | . 2 . . . Indirectly . | . . . . . Trap Hack Attempts . | . . . . . Triggered . | . . . . . Disarmed . | . . . . . Reprogrammed . | . . . . . Reused . | . . . . . Traps Extracted . | . . . . . Installed . | . . . . . Triggered . | . . . . . Machines | -11 -10 -10 -10 -9 ---------- Run | Yrd Mat Min Sub Rec Machines Disabled 5 | . 5 . . . Max in Single Turn 1 | . 1 . . . Machines Repaired . | . . . . . Machines Dismantled . | . . . . . Machines Sabotaged . | . . . . . Overloaded Fab Kills . | . . . . . Hacking | -11 -10 -10 -10 -9 --------- Run | Yrd Mat Min Sub Rec Machines Accessed 3 | . 3 . . . Terminals 3 | . 3 . . . Fabricators . | . . . . . Repair Stations . | . . . . . Recycling Units . | . . . . . Scanalyzers . | . . . . . Garrison Access . | . . . . . Total Hacks 8 | . 8 . . . Successful 2 | . 2 . . . Failed 6 | . 6 . . . Catastrophic . | . . . . . Database Lockouts . | . . . . . Manual 7 | . 7 . . . Terminals 8 | . 8 . . . Fabricators . | . . . . . Repair Stations . | . . . . . Recycling Units . | . . . . . Scanalyzers . | . . . . . Garrison Access . | . . . . . Terminal Hacks 1 | . 1 . . . Prototype ID Bank 1 | . 1 . . . Fabricator Hacks . | . . . . . Repair Station Hacks . | . . . . . Recycling Unit Hacks . | . . . . . Scanalyzer . | . . . . . Garrison Access Hacks . | . . . . . Unauthorized Hacks 1 | . 1 . . . Terminals 1 | . 1 . . . Botnet 1 | . 1 . . . Fabricators . | . . . . . Repair Stations . | . . . . . Recycling Units . | . . . . . Scanalyzers . | . . . . . Garrison Access . | . . . . . Data Cores Recovered . | . . . . . Used . | . . . . . Hacking Detections 3 | . 3 . . . Full Trace Events . | . . . . . Feedback Events . | . . . . . Feedback Blocked . | . . . . . Robot Schematics Acquired . | . . . . . Robots Built . | . . . . . Authchips . | . . . . . Time . | . . . . . Total Robot Build Rating . | . . . . . Part Schematics Acquired . | . . . . . Parts Built . | . . . . . Authchips . | . . . . . Time . | . . . . . Total Part Build Rating . | . . . . . Part Studies Acquired . | . . . . . Parts Repaired . | . . . . . Time . | . . . . . Parts Recycled . | . . . . . Recycled Matter . | . . . . . Retrieved Matter . | . . . . . Retrieved Components . | . . . . . Parts Scanalyzed . | . . . . . Part Schematics Acquired . | . . . . . Parts Damaged . | . . . . . Bothacking | -11 -10 -10 -10 -9 ------------ Run | Yrd Mat Min Sub Rec Used RIF Installer . | . . . . . Robots Hacked . | . . . . . Non-combat . | . . . . . Combat . | . . . . . Robot Hacks Applied . | . . . . . Relay Couplers Released . | . . . . . Fabnet Peak Effective % . | . . . . . Robots Rewired . | . . . . . Allies Hacked . | . . . . . Hacks Repelled . | . . . . . Allies | -11 -10 -10 -10 -9 -------- Run | Yrd Mat Min Sub Rec Total Allies . | . . . . . Largest Group . | . . . . . Highest-Rated Group . | . . . . . Highest-Rated Ally . | . . . . . Total Orders . | . . . . . Ally Attacks . | . . . . . Total Damage . | . . . . . Kills . | . . . . . Allies Corrupted . | . . . . . Allies Melted . | . . . . . Intel | -11 -10 -10 -10 -9 ------- Run | Yrd Mat Min Sub Rec Active Infowar (turns) 1948 | . 1456 451 41 . Structural 1948 | . 1456 451 41 . Robot Analysis Total . | . . . . . Derelict Logs Recovered 1 | . . 1 . . Drone Launches . | . . . . . Drone Recoveries . | . . . . . Exploration | -11 -10 -10 -10 -9 ------------- Run | Yrd Mat Min Sub Rec Turns Passed 2503 | 73 1615 451 162 202 Spaces Moved 980 | 41 662 180 36 61 Core 2 | 2 . . . . Treads 978 | 39 662 180 36 61 Legs . | . . . . . Wheels . | . . . . . Hover . | . . . . . Flight . | . . . . . Fastest Speed 50 | 50 160 240 240 320 Average Speed 226 | 154 215 240 280 320 Slowest Speed 320 | 160 240 240 320 320 Overloaded Moves . | . . . . . Propulsion Burnouts . | . . . . . Robots Hopped . | . . . . . Potential Cave-ins . | . . . . . Cave-ins Triggered . | . . . . . Exploration Rate (%) 33 | 3 90 50 6 17 Regions Visited 4 Branch Regions 3 Pre-discovered Areas . | . . . . . Known Exits Taken . | . . . . . Unknown Exits Taken 4 | 1 1 1 1 . Scrap Searched 1 | . . 1 . . Spaces Dug . | . . . . . Terrain Destroyed 17 | . 17 . . . Melee . | . . . . . Projectile . | . . . . . AOE 17 | . 17 . . . Terrain Rammed . | . . . . . Walls Destroyed . | . . . . . Machines Disabled . | . . . . . Actions | -11 -10 -10 -10 -9 --------- Run | Yrd Mat Min Sub Rec Total 1114 | 48 745 188 68 65 Wait 22 | . 13 3 6 . Move 976 | 40 661 179 35 61 Hop . | . . . . . Pick Up 10 | 2 8 . . . Fast Attach 7 | 6 1 . . . Attach 3 | . . . 3 . Detach . | . . . . . Swap 6 | . 6 . . . Drop 3 | . 3 . . . Fire 84 | . 53 6 24 1 Melee . | . . . . . Ram . | . . . . . Kick . | . . . . . Crush . | . . . . . Escape Stasis . | . . . . . Rewire 3 | . . . . 3 Trap . | . . . . . Miscellaneous . | . . . . . Route ------- -11/Scrapyard -10/Materials (discovered 4 exits: [*Mat x2] / [*Min x2]) -10/Mines (discovered 2 exits: [*Mat] / [*Sub]) -10/Subcaves -9/Recycling History --------- Turn | Location | Event 15 | -11/Scrapyard | Discovered new exit (range 15) 74 | -11/Scrapyard | Entered Materials 198 | -10/Materials | Discovered new exit (range 10) 305 | -10/Materials | Build established: Mutant 343 | -10/Materials | Discovered new exit (range 15) 855 | -10/Materials | Discovered new exit (range 12) 1145 | -10/Materials | Discovered new exit (range 7) 1689 | -10/Materials | Entered Mines 1821 | -10/Mines | Learned 2 Materials zone layouts 2082 | -10/Mines | Discovered new exit (range 10) 2121 | -10/Mines | Discovered new exit (range 7) 2140 | -10/Mines | Entered Subcaves 2176 | -10/Subcaves | Discovered new exit (range 14) 2198 | -10/Subcaves | Core integrity fell below 50% 2259 | -10/Subcaves | Lost 5 parts (1p1n1u2w) 2302 | -10/Subcaves | Entered Recycling 2504 | -9/Recycling | Destroyed by H-55 Commando with Gauss Rifle Last Messages --------------- 02492_ H-55 Commando springs to life. 02492_ Penetrated by Slug. 02492_ H-55 Commando springs to life. 02492_ G-34 Mercenary springs to life. 02493_ P-60 Hacker springs to life. 02493_ Penetrated by Slug. 02496_ Slug penetrates L-31 Rogue. 02498_ R-06 Scavenger destroyed. 02498_ Attempting to rewire R-06 Scavenger. 02499_ Y-45 Defender springs to life. 02499_ Attempting to rewire R-06 Scavenger. 02499_ Penetrated by Slug. 02500_ Attempting to rewire R-06 Scavenger. 02501_ Penetrated by Slug. 02501_ Lgt. Treads destroyed. 02502_ Lgt. Cannon destroyed. 02502_ Critical hit (Destroy). 02502_ Lgt. Cannon destroyed. 02502_ Ion Engine destroyed. 02504_ Penetrated by Slug. Map ----- +----------------------------------------------------+ | | | | | | | | | | | | | | | | | | | | | ??????????????????????????????????????????????? | | ??????????????????????????????????????????????? | | ??????????????????????????????????????????????? | | ??????????????????????????????????????????????? | | ??????????????????????????????????????????????? | | ??????????????????????????????????????????????? | | ??????????????????????????????????????????????? | | ??????????????????????????????????????????????? | | ??????????????????????????????????????????????? | | ??????????????????????????????????????????????? | | ??????????????????????????????????????????????? | | ??????????????????????????????????????????????? | | ???????????????###############????????????????? | | ???????????????# ! l!k! %i#????????????????? | | ???????????????# [!lhh% r ata#????????????????? | | ???????????????#[g rg@*Yg#????????????????? | | ???????????????# r phh=% #????????????????? | | ???????????????#+##/#####Y###### #?????????? | | ???????????????+ r / #?????????? | | ?????????????????#### ### ###### #?????????? | | ???????????????????###### #???????????????????? | | ???????????????????# ## #???????????????????? | | ???????????????????# ## #???????????????????? | | ???????????????????# ## #???????????????????? | | ???????????????????# ##+#####???????????????? | | ???????????????##### ## #???????????????? | | ?????????????? ## ## #???????????????? | | ????????????? ## ## #???????????????? | | ??????????""""""" ## ## #???????????????? | | ????????? """"""" ## ## ##??????????????? | | ????????# """"""" ## ## #??????????????? | | ???????## """"""" # # ##??????????????? | | ???????#T """"""" # # #??????????????? | | ????????# + + ##??????????????? | | ????????# """"""" # # #???????????????? | | ????????# """"""" # # #???????????????? | | ????????# """"""" ####### #???????????????? | | ????????? """"""" #?????# #???????????????? | | ??????????""""""" #?????# #???????????????? | | ????????????? #?????# #???????????????? | +----------------------------------------------------+ Best States ------------- Heat Dissipation 25 Energy Generation 10 Energy Capacity 250 Matter Stores 300 Matter Capacity 300 Sight Range 16 Terrain Scan Density 10 Evasion (%) 40 Recoil Reduction 2 Item Schematics ----------------- None Robot Schematics ------------------ None Fabricated ------------ Nothing Repaired ---------- Nothing Studied --------- None Alien Tech Used ----------------- None Achievements -------------- None Challenges ------------ None Game ------ Seed FocalCarbideAxe Manual? 0 Play Time 00:10:20 Cumulative 85.0 hours Start 2026.07.09 @ 17:20:38 End 2026.07.09 @ 17:31:51 Sessions 3 Manual Loads 0 Difficulty Rogue Special Mode None Game No. 143 Rogue 143 Adventurer 0 Explorer 0 Win Type - Total 0 Types 0/0/0/0/0/0/0/0/0/0 Lore% 21 Gallery% 31 Achievement% 28 Wizard Run 0 Options --------- Layout 0 ASCII 0 Keyboard 0 Movement Mouse Keybinds 0 Fullscreen 1 Font 24/Smallcaps Map View 38x25 Zoom Use 99% Tactical HUD 1 Map Filters NONE Filters NONE Steam 1 RUN: 5c0b41bb-4bed-44f7-9193-dafc3d7425a4